bitfinex-derivatives/quotes_ETHF0:USTF0_20260310
["timestamp","ask_amount","ask_price","bid_price","bid_amount"]
[1773141114962,3.34829578,2062.7,2062.1,3.4378813]
[1773141115361,3.34829578,2062.7,2062.1,5.31754995]
[1773141116366,3.34829578,2062.7,2062.0,3.4378813]
[1773141118763,3.34829578,2062.7,2062.2,3.4378813]
[1773141121262,3.34829578,2062.7,2062.0,3.4378813]
[1773141123169,3.34829578,2062.5,2062.0,3.4378813]
[1773141126170,3.30834538,2062.7,2062.0,3.4378813]
[1773141128470,3.30834538,2062.7,2062.2,3.51146381]
[1773141136371,3.30834538,2062.7,2062.0,3.51146381]
[1773141138473,3.30834538,2062.7,2062.2,3.51146381]
[1773141156180,3.30834538,2062.7,2062.0,3.38696621]
[1773141167292,3.34423148,2062.5,2062.0,3.38696621]
[1773141168297,3.34423148,2062.3,2061.7,3.38696621]
[1773141169298,3.34423148,2062.1,2061.6,3.3917344]
[1773141169493,3.34423148,2061.9,2061.6,3.3917344]
[1773141169997,10.00423148,2062.0,2061.6,3.3917344]
[1773141170193,6.66,2062.0,2061.6,3.3917344]
[1773141170396,3.34423148,2062.3,2061.6,3.3917344]
[1773141174702,3.29757371,2062.3,2061.6,3.3917344]
[1773141177901,3.29757371,2062.3,2061.6,0.00476819]
[1773141178103,3.29757371,2062.3,2061.6,3.21046998]
[1773141181906,3.29757371,2062.1,2061.6,3.21046998]
[1773141182111,3.29757371,2061.9,2061.6,0.00476819]
[1773141182311,3.29757371,2061.9,2061.5,3.20570179]
[1773141183314,3.29757371,2061.9,2061.5,3.20982263]
[1773141187909,3.29757371,2061.9,2061.5,0.00412084]
[1773141189516,3.29757371,2061.9,2061.1,3.05724116]
[1773141189915,3.54006371,2061.9,2061.1,3.05724116]
[1773141190517,3.54006371,2061.9,2061.1,3.06092083]
[1773141191411,3.31413577,2061.8,2061.1,3.06092083]
[1773141191611,3.31413577,2061.6,2061.1,0.00367967]
[1773141191817,3.31413577,2061.4,2061.1,0.00367967]
[1773141192009,3.31413577,2061.4,2061.0,0.1]
[1773141192920,3.31413577,2061.4,2061.0,0.10616803]
[1773141193120,10.05113577,2061.5,2061.0,3.16340919]
[1773141195817,3.31413577,2061.4,2061.0,3.16340919]
[1773141196221,3.31413577,2061.4,2061.0,0.10616803]
[1773141199624,3.31413577,2061.4,2061.0,3.16340919]
[1773141200926,3.31413577,2061.4,2061.0,0.10616803]
[1773141202326,3.31413577,2061.4,2060.4,1.88081275]
[1773141202526,3.31413577,2061.4,2060.5,3.05724116]
[1773141203230,3.31413577,2061.4,2060.5,3.06191832]
[1773141214244,3.31413577,2061.4,2060.5,3.06191832]
[1773141216253,6.737,2061.5,2060.5,3.06191832]
[1773141216254,3.11344464,2061.2,2060.5,3.06191832]
[1773141216749,3.11344464,2061.0,2060.5,0.00467716]
[1773141218354,3.11344464,2060.9,2060.5,0.00467716]
[1773141221256,3.11344464,2060.9,2059.7,3.29704261]
[1773141221758,3.11344464,2060.7,2059.7,3.29704261]
[1773141222252,3.11344464,2060.7,2059.7,3.3017887]
[1773141223459,3.11344464,2060.5,2059.7,3.3017887]
[1773141223662,3.11344464,2060.4,2059.7,3.3017887]
[1773141224852,3.11344464,2060.2,2059.7,3.3017887]
[1773141225057,3.11859679,2060.2,2059.7,3.3017887]
[1773141226360,3.11859679,2060.2,2059.7,0.00474609]
[1773141226760,3.11344464,2059.8,2059.4,3.29704261]
[1773141227960,3.11344464,2059.8,2059.4,3.30221113]
[1773141228660,3.11344464,2059.6,2059.4,0.00516852]
[1773141229858,3.23433286,2059.8,2059.4,3.00264833]
[1773141230061,10.03733286,2059.9,2059.5,2.99747981]
[1773141230362,3.23433286,2059.8,2059.5,2.99747981]
[1773141230860,3.23433286,2059.8,2059.4,3.00264833]
[1773141233772,3.23433286,2059.9,2059.4,3.00264833]
[1773141233973,3.23433286,2060.0,2059.4,3.00264833]
[1773141234172,3.23433286,2060.0,2059.4,0.00516852]
[1773141234468,3.23433286,2059.9,2059.4,0.00516852]
[1773141234678,3.23433286,2059.7,2059.0,2.99747981]
[1773141235577,3.23433286,2059.5,2059.0,3.00237055]
[1773141235869,3.23433286,2059.6,2059.1,2.99747981]
[1773141236075,10.04333286,2059.7,2059.1,2.99747981]
[1773141236267,3.23433286,2059.6,2059.1,2.99747981]
[1773141236467,3.23433286,2059.6,2059.0,3.00237055]
[1773141238478,3.23433286,2059.5,2059.0,0.00489074]
[1773141239376,3.23433286,2059.3,2059.0,0.00489074]
[1773141239879,3.23433286,2059.5,2059.1,2.99747981]
[1773141240274,3.23433286,2059.5,2059.0,0.00489074]
[1773141240676,3.23433286,2059.3,2059.0,0.00489074]
[1773141240873,3.23433286,2059.2,2059.0,0.00489074]
[1773141241173,3.23433286,2059.5,2059.0,0.00489074]
[1773141243277,10.05033286,2059.6,2059.2,2.99747981]
[1773141243580,9.49134518,2059.7,2059.4,2.99747981]
[1773141243882,3.50727757,2059.6,2059.3,3.19620759]
[1773141244577,3.50727757,2059.6,2059.1,3.19620759]
[1773141247081,10.32727757,2059.7,2059.3,3.19620759]
[1773141249286,10.33427757,2059.8,2059.4,1.88488242]
[1773141249580,3.50727757,2059.8,2059.5,3.19620759]
[1773141250187,3.50727757,2059.9,2059.6,1.88488242]
[1773141250384,3.50727757,2060.1,2059.7,3.19620759]
[1773141251482,3.50727757,2060.1,2059.5,3.19620759]
[1773141253089,3.50727757,2060.1,2059.6,1.88488242]
[1773141253289,6.83415215,2060.2,2059.9,3.19620759]
[1773141253690,10.34142972,2060.2,2059.9,3.19620759]
[1773141254290,6.48202479,2060.2,2059.9,3.19620759]
[1773141254688,9.98930236,2060.2,2059.9,3.19620759]
[1773141254887,6.48202479,2060.2,2059.9,3.19620759]
[1773141255085,4.47044466,2060.2,2059.9,3.19620759]
[1773141255287,3.50727757,2060.1,2059.5,3.19620759]
[1773141256284,3.50727757,2060.1,2059.0,0.00489074]
[1773141256285,3.50727757,2059.9,2059.1,3.19620759]
[1773141256592,1.88488242,2060.0,2059.1,3.19620759]
[1773141256593,3.50727757,2059.7,2059.1,3.19620759]
[1773141258586,3.50727757,2059.7,2059.2,1.88488242]
[1773141258793,3.50727757,2059.7,2059.3,3.19620759]
[1773141260490,3.50727757,2059.3,2058.7,3.19620759]
[1773141260693,3.50727757,2059.2,2058.7,3.19620759]
[1773141261600,3.50727757,2059.2,2058.7,3.20193376]
[1773141262900,3.50727757,2059.2,2058.2,3.19620759]
[1773141263796,3.50727757,2059.0,2058.2,3.20185356]
[1773141263995,8.80215237,2059.5,2058.2,3.20185356]
[1773141263996,3.50727757,2058.8,2058.2,3.20185356]
[1773141266702,3.50727757,2058.8,2058.2,0.00564597]
[1773141266902,3.50727757,2058.8,2058.2,3.20185356]
[1773141268899,3.50727757,2058.8,2058.2,0.00564597]
[1773141269402,3.50727757,2058.8,2058.2,3.20185356]
[1773141272703,3.50727757,2058.8,2058.2,0.00564597]
[1773141273301,3.50727757,2058.8,2058.2,3.20185356]
[1773141273703,3.50727757,2058.8,2058.2,0.00564597]
[1773141274704,3.50727757,2058.8,2058.2,3.36264412]
[1773141276805,3.50727757,2058.8,2058.2,0.00564597]
[1773141277202,3.32851151,2058.6,2058.2,3.36264412]
[1773141277410,3.33464838,2058.6,2058.2,3.36264412]
[1773141283518,3.33464838,2058.6,2057.8,3.35699815]
[1773141283718,3.57141151,2058.4,2057.8,3.35699815]
[1773141284515,3.57141151,2058.4,2057.8,3.36278721]
[1773141285912,3.33464838,2058.6,2057.8,3.36278721]
[1773141287916,3.39555932,2058.4,2057.8,3.36278721]
[1773141292722,3.39555932,2058.5,2057.8,3.36278721]
[1773141293316,3.39555932,2058.5,2057.8,0.00578906]
[1773141293517,3.39555932,2058.3,2057.6,3.25719468]
[1773141294217,3.39555932,2057.9,2057.0,3.25719468]
[1773141294419,3.39555932,2057.5,2057.0,3.25719468]
[1773141294620,3.39555932,2057.5,2056.9,3.25719468]
[1773141295615,3.39555932,2057.5,2056.9,3.26128155]
[1773141296424,3.39555932,2058.0,2056.9,3.26128155]
[1773141296728,3.39555932,2057.8,2056.9,3.26128155]
[1773141297120,3.39555932,2058.0,2056.9,3.26128155]
[1773141298322,3.39555932,2058.0,2056.9,3.50435155]
[1773141299322,3.63844932,2058.4,2056.9,3.50435155]
[1773141299522,3.63844932,2058.4,2057.0,3.25719468]
[1773141301130,3.63844932,2058.4,2057.2,3.25719468]
[1773141301532,3.39555932,2058.4,2057.4,3.25719468]
[1773141304028,3.50632451,2058.6,2057.4,3.25719468]
[1773141304831,3.74920451,2058.6,2057.4,3.25719468]
[1773141305435,3.50018764,2058.2,2057.4,3.25719468]
[1773141305636,3.50018764,2058.0,2057.4,3.25719468]
[1773141305825,3.50018764,2057.8,2057.0,3.31850545]
[1773141308442,4.03817179,2058.3,2057.0,3.31850545]
[1773141308443,3.50018764,2058.3,2057.0,3.31850545]
[1773141308640,3.50018764,2057.9,2057.0,3.31850545]
[1773141314536,3.50018764,2058.3,2057.0,3.31850545]
[1773141314739,3.50018764,2058.1,2057.0,3.31850545]
[1773141316440,3.50018764,2058.1,2057.2,3.31850545]
[1773141320048,3.74312764,2058.1,2057.2,3.31850545]
[1773141320552,3.50018764,2057.7,2057.2,3.31850545]
[1773141320849,3.50018764,2057.7,2057.0,3.31850545]
[1773141322751,3.50018764,2057.1,2056.3,3.31850545]
[1773141323752,3.50629273,2057.1,2056.3,3.32202345]
[1773141325251,3.50018764,2056.9,2056.0,3.31850545]
[1773141325455,3.50018764,2057.0,2056.0,3.31850545]
[1773141326148,0.00610509,2057.1,2056.0,3.31850545]
[1773141326448,3.50629273,2057.1,2056.0,3.32410764]
[1773141328257,0.00610509,2057.1,2056.2,3.31850545]
[1773141328755,3.50629273,2057.1,2056.2,3.31850545]
[1773141328949,3.50018764,2056.9,2056.0,3.32410764]
[1773141329956,3.50018764,2056.9,2056.0,0.00560219]
[1773141330650,3.50018764,2056.7,2056.0,0.00560219]
[1773141331958,3.50018764,2056.7,2055.7,3.31850545]
[1773141332558,3.50018764,2056.5,2055.7,3.31850545]
[1773141332959,3.50018764,2056.5,2055.7,3.32327179]
[1773141336064,3.27411581,2057.0,2055.7,3.32327179]
[1773141336565,3.27411581,2057.0,2055.9,3.02454767]
[1773141337167,3.27411581,2057.0,2056.1,3.02454767]
[1773141337868,3.51718581,2057.0,2055.8,3.02454767]
[1773141339467,3.27411581,2057.0,2055.8,3.02454767]
[1773141339677,3.51717581,2057.0,2055.8,3.02454767]
[1773141341473,3.27411581,2057.0,2055.8,3.02454767]
[1773141342074,3.27411581,2057.0,2056.0,3.02454767]
[1773141343572,3.27411581,2057.0,2056.2,3.02454767]
[1773141344075,3.27411581,2056.8,2055.8,3.02454767]
[1773141348577,3.27411581,2056.8,2056.0,2.95481227]
[1773141348880,3.19815015,2057.0,2056.0,2.95481227]
[1773141349271,3.19815015,2057.0,2056.2,2.95481227]
[1773141352783,0.00610509,2057.1,2056.2,2.95481227]
[1773141352979,3.20425524,2057.1,2056.2,2.95481227]
[1773141353482,3.20425524,2057.1,2056.4,2.95481227]
[1773141354084,0.00610509,2057.1,2056.4,2.95481227]
[1773141354285,3.20425524,2057.1,2056.4,2.95481227]
[1773141354985,3.19815015,2057.5,2056.4,2.95481227]
[1773141355987,3.20387884,2057.5,2056.4,2.95481227]
[1773141360789,3.20387884,2057.5,2055.9,5.98242]
[1773141360790,3.20387884,2057.5,2056.6,2.95481227]
[1773141360990,3.20387884,2057.5,2056.6,5.79215453]
[1773141361185,3.20387884,2057.5,2056.7,2.95481227]
[1773141361385,3.19815015,2057.8,2056.7,2.95481227]
[1773141362281,3.2027504,2057.8,2056.7,2.95481227]
[1773141362485,3.2027504,2057.8,2057.0,2.95481227]
[1773141373999,0.00460025,2057.8,2057.1,3.07898085]
[1773141374293,0.24287,2058.6,2057.1,3.32201085]
[1773141374494,2.91040343,2058.5,2057.4,3.07898085]
[1773141375096,2.91040343,2058.3,2057.4,3.08321234]
[1773141375298,2.91040343,2058.1,2056.7,3.07898085]
[1773141375800,2.83734226,2058.2,2056.7,3.07898085]
[1773141375801,2.91040343,2057.9,2056.7,3.07898085]
[1773141376298,2.91040343,2057.9,2056.7,3.08522015]
[1773141380406,2.91040343,2057.9,2057.1,3.07898085]
[1773141382709,0.24289,2058.4,2057.1,3.07898085]
[1773141383007,2.91040343,2058.3,2057.1,3.07898085]
[1773141390414,2.91040343,2058.1,2057.1,3.07898085]
[1773141391618,2.91040343,2058.1,2057.5,3.07898085]
[1773141392115,2.91040343,2058.0,2057.2,3.07898085]
[1773141392320,1.88865995,2057.9,2057.2,3.07898085]
[1773141392522,2.91040343,2057.8,2057.2,3.07898085]
[1773141393214,2.91040343,2057.8,2057.3,3.07898085]
[1773141393415,2.91040343,2058.0,2057.4,1.88865995]
[1773141393621,2.91040343,2058.0,2057.5,3.07898085]
[1773141397527,2.85374916,2058.4,2057.5,3.07898085]
[1773141397723,2.85374916,2058.2,2057.5,3.07898085]
[1773141397924,2.85374916,2058.4,2057.5,3.07898085]
[1773141398828,0.00580713,2058.5,2057.7,2.90942723]
[1773141399027,2.85374916,2058.8,2057.9,2.90942723]
[1773141400030,2.85374916,2059.0,2058.1,2.90942723]
[1773141401029,2.85855337,2059.0,2058.1,2.90942723]
[1773141405831,2.85855337,2059.0,2058.1,5.74230823]
[1773141406132,2.85855337,2059.0,2058.2,2.90942723]
[1773141406337,0.00480421,2059.0,2058.2,2.91371366]
[1773141406838,2.85374916,2059.3,2058.4,2.90942723]
[1773141407240,2.85374916,2059.3,2058.6,2.90942723]
[1773141407638,2.85374916,2059.9,2058.6,2.90942723]
[1773141407836,2.85781738,2059.9,2058.6,2.90942723]
[1773141408840,2.85781738,2059.9,2058.8,2.90942723]
[1773141411440,2.99700895,2059.5,2058.3,2.91402203]
[1773141412446,2.99700895,2059.3,2058.3,2.91402203]
[1773141412634,2.99700895,2059.1,2058.3,2.91402203]
[1773141419849,2.99700895,2059.3,2058.3,3.15691203]
[1773141420246,2.99700895,2059.5,2058.3,3.15691203]
[1773141426143,2.99700895,2059.5,2058.6,0.24286]
[1773141426349,2.99700895,2059.5,2058.7,2.72323446]
[1773141427057,2.95253286,2059.8,2058.9,2.72323446]
[1773141428043,2.95253286,2059.8,2058.5,2.72323446]
[1773141429653,2.95253286,2059.8,2058.7,2.72323446]
[1773141432153,2.95253286,2059.6,2058.7,2.72323446]
[1773141440264,3.19529286,2059.6,2058.5,2.72323446]
[1773141440460,2.95253286,2059.6,2058.5,2.72323446]
[1773141443562,2.95253286,2059.6,2058.5,2.96610446]
[1773141446973,2.95253286,2059.6,2058.6,2.72323446]
[1773141449173,2.95253286,2059.6,2058.7,2.72323446]
[1773141454675,2.95253286,2059.6,2058.9,2.82563304]
[1773141459182,2.95253286,2059.6,2058.7,2.82563304]
[1773141463089,2.95253286,2059.6,2058.9,2.82563304]
[1773141463293,2.64479618,2059.8,2059.1,2.82563304]
[1773141463895,2.64479618,2059.8,2058.9,2.82563304]
[1773141466995,2.88752618,2059.8,2058.9,2.82563304]
[1773141468395,2.88752618,2059.8,2058.6,2.82563304]
[1773141468596,2.64479618,2059.4,2058.4,2.82563304]
[1773141472599,2.66281996,2059.2,2058.4,2.82563304]
[1773141472899,2.66281996,2059.2,2058.3,2.67467528]
[1773141475497,2.66281996,2059.2,2058.2,0.00428643]
[1773141475800,2.66281996,2059.2,2058.2,2.67896171]
[1773141476598,2.66281996,2059.6,2058.4,2.67467528]
[1773141477903,2.66281996,2059.6,2058.6,2.67467528]
[1773141482698,2.66281996,2059.6,2058.5,2.91755528]
[1773141483807,2.70292994,2059.8,2058.7,2.86282127]
[1773141484106,2.70292994,2059.8,2059.0,2.61997127]
[1773141487212,2.70292994,2059.8,2058.8,2.61997127]
[1773141487706,2.70292994,2059.8,2059.0,2.61997127]
[1773141490014,2.70292994,2059.8,2058.6,2.61997127]
[1773141490015,2.94565994,2059.8,2058.6,2.61997127]
[1773141491114,2.70292994,2059.5,2058.6,2.61997127]
[1773141496518,2.70292994,2059.8,2058.6,2.61997127]
[1773141497612,2.70292994,2059.8,2058.6,2.86283127]
[1773141497811,2.70292994,2059.8,2058.8,2.86281127]
[1773141501228,2.70292994,2059.8,2058.8,2.61997127]
[1773141509937,2.70292994,2059.8,2058.9,0.24283]
[1773141510243,2.70699816,2059.9,2059.0,2.61997127]
[1773141515541,2.70699816,2059.9,2059.2,2.70287016]
[1773141517543,2.59711117,2060.0,2059.2,2.70287016]
[1773141518039,2.59711117,2060.4,2059.2,2.70287016]
[1773141518445,2.60213537,2060.4,2059.2,2.70287016]
[1773141521545,2.59711117,2060.2,2059.2,2.70287016]
[1773141523446,2.59711117,2060.0,2059.2,2.70287016]
[1773141523646,2.59711117,2059.8,2058.9,2.70287016]
[1773141532050,2.59711117,2059.8,2059.1,2.63057849]
[1773141534356,2.59711117,2059.8,2058.8,2.63057849]
[1773141539958,2.83984117,2059.8,2058.8,2.63057849]
[1773141547670,2.59711117,2059.8,2058.8,2.87340849]
[1773141549065,2.59711117,2059.8,2058.9,2.39288235]
[1773141549466,2.59711117,2059.8,2059.1,2.39288235]
[1773141555871,2.64364013,2060.1,2059.1,2.39288235]
[1773141561278,2.64364013,2059.9,2059.1,2.39288235]
[1773141570184,2.88636013,2059.9,2059.1,2.39288235]
[1773141571475,2.64364013,2059.7,2059.1,2.39288235]
[1773141571879,2.64364013,2059.7,2058.8,2.39288235]
[1773141574487,2.54935102,2059.5,2058.7,2.5575023]
[1773141575686,2.54935102,2059.4,2058.7,2.5575023]
[1773141575884,2.54935102,2059.2,2058.7,2.5575023]
[1773141576288,2.54935102,2059.2,2058.5,2.5575023]
[1773141577784,1.8869248,2058.8,2058.2,2.56178873]
[1773141577988,2.54935102,2058.7,2058.2,0.00428643]
[1773141578385,2.54935102,2058.7,2058.0,2.5575023]
[1773141579390,2.54935102,2058.7,2058.0,2.56177957]
[1773141580586,6.36504206,2058.8,2058.0,2.56177957]
[1773141581193,8.91439308,2058.8,2058.0,2.56177957]
[1773141581393,2.54935102,2058.7,2058.0,2.56177957]
[1773141590507,2.54935102,2058.7,2058.0,0.00427727]
[1773141591809,2.54935102,2058.7,2057.7,2.4381848]
[1773141592712,2.54935102,2058.7,2057.7,2.44426063]
[1773141593709,2.54935102,2058.7,2057.9,2.4381848]
[1773141599615,2.54935102,2058.7,2058.0,2.4381848]
[1773141600008,1.88776969,2058.6,2057.8,2.4381848]
[1773141600214,2.43006669,2058.5,2057.8,2.4381848]
[1773141600817,2.43006669,2058.3,2057.7,0.00607583]
[1773141603317,2.43006669,2058.3,2057.6,2.4381848]
[1773141604316,2.43006669,2058.3,2057.6,2.44205781]
[1773141607624,8.25176969,2058.4,2057.6,0.00387301]
[1773141607625,2.59944462,2058.1,2057.6,0.00387301]
[1773141607824,2.59944462,2058.1,2057.4,2.35424507]
[1773141608823,2.59944462,2058.1,2057.4,2.35848097]
[1773141609327,2.59944462,2058.1,2057.6,2.35424507]
[1773141609526,2.59944462,2058.1,2057.8,2.35424507]
[1773141609925,2.59944462,2058.1,2057.5,2.35424507]
[1773141610126,2.59944462,2058.1,2057.4,2.35848097]
[1773141613027,2.59944462,2058.1,2057.4,0.0042359]
[1773141613528,2.59944462,2058.1,2057.4,2.35848097]
[1773141615724,2.59944462,2058.1,2057.4,0.0042359]
[1773141621232,2.59944462,2058.1,2057.4,2.35848097]
[1773141630947,2.59944462,2058.3,2057.6,2.35424507]
[1773141631646,2.59944462,2058.3,2057.8,2.35424507]
[1773141635648,2.59944462,2058.3,2058.0,2.50001608]
[1773141636146,2.59944462,2058.3,2057.9,4.38806752]
[1773141636644,2.59944462,2058.3,2057.9,2.50001608]
[1773141636844,2.59944462,2058.3,2057.7,4.38806752]
[1773141637945,2.59944462,2058.3,2057.6,6.749]
[1773141638146,2.34741076,2058.0,2057.5,2.50001608]
[1773141638344,2.34741076,2058.0,2057.4,2.50425198]
[1773141640947,2.34741076,2058.0,2057.4,0.0042359]
[1773141642750,2.34741076,2057.4,2056.8,2.50001608]
[1773141643342,2.34741076,2057.6,2057.0,2.50001608]
[1773141643550,2.34741076,2057.6,2057.3,4.38806752]
[1773141643750,2.34741076,2057.6,2057.3,4.39319528]
[1773141643946,2.34741076,2057.6,2057.3,2.50514384]
[1773141644450,2.34741076,2057.6,2057.3,0.00512776]
[1773141645350,0.24296,2057.9,2057.3,2.50514384]
[1773141645648,2.34741076,2057.8,2057.3,2.50514384]
[1773141647750,2.34741076,2058.2,2057.3,2.50514384]
[1773141650149,0.24293,2058.1,2057.3,2.50514384]
[1773141650354,2.56853987,2058.0,2057.3,0.00512776]
[1773141654954,2.56853987,2057.8,2057.3,0.00512776]
[1773141656958,2.56853987,2057.8,2057.0,2.35735989]
[1773141657756,2.56853987,2057.6,2056.8,2.35735989]
[1773141657956,2.56853987,2057.6,2056.8,2.36137002]
[1773141660055,2.56853987,2057.4,2056.8,0.00401013]
[1773141660658,2.56853987,2057.4,2056.8,2.36137002]
[1773141661154,6.60695,2058.0,2056.8,2.36137002]
[1773141661358,2.56853987,2057.8,2056.8,2.36137002]
[1773141662860,2.56853987,2057.8,2057.0,2.35735989]
[1773141667763,2.56853987,2057.8,2057.2,2.52892386]
[1773141669066,2.56853987,2057.8,2057.2,9.76492386]
[1773141669267,2.56853987,2057.8,2057.3,2.52892386]
[1773141672468,2.56853987,2057.8,2057.3,9.79292386]
[1773141672667,2.56853987,2057.8,2057.3,9.79592386]
[1773141673170,2.56853987,2057.8,2057.1,2.52892386]
[1773141674262,2.56853987,2057.8,2056.9,7.51707]
[1773141674467,2.56853987,2057.8,2057.0,2.52892386]
[1773141675568,2.56853987,2057.8,2056.7,10.17757372]
[1773141675569,6.63729524,2058.5,2057.1,3.2051614]
[1773141675864,6.08860083,2058.0,2056.6,2.52892386]
[1773141676077,7.65263359,2057.9,2056.6,2.52892386]
[1773141676269,2.38745257,2058.8,2056.8,2.59330351]
[1773141676569,2.38745257,2059.5,2057.8,2.52892386]
[1773141676867,2.38745257,2060.3,2058.8,2.52892386]
[1773141677069,2.38745257,2060.3,2059.2,2.52892386]
[1773141677267,2.38745257,2061.4,2059.5,2.52892386]
[1773141677464,2.38745257,2060.0,2058.8,2.52892386]
[1773141677669,2.38745257,2060.0,2058.7,63.10696178]
[1773141677670,2.38745257,2059.8,2059.0,2.52892386]
[1773141677868,2.38745257,2060.4,2059.0,2.53298454]
[1773141678070,2.38745257,2061.2,2059.2,2.52892386]
[1773141678269,2.38745257,2061.0,2059.2,2.52892386]
[1773141678568,17.29260864,2062.2,2059.9,2.52892386]
[1773141678569,2.38745257,2061.6,2059.9,2.52892386]
[1773141678867,2.39353054,2061.6,2059.9,2.52892386]
[1773141679074,2.39353054,2061.6,2060.1,2.52892386]
[1773141679269,2.39353054,2061.6,2060.3,2.52892386]
[1773141679569,2.38745257,2061.5,2060.3,2.52892386]
[1773141680171,2.38745257,2061.5,2060.3,2.44448561]
[1773141680371,2.38745257,2061.5,2060.5,2.52892386]
[1773141680571,2.38745257,2061.5,2060.5,2.53469871]
[1773141680769,2.38745257,2061.5,2060.7,2.52892386]
[1773141680973,0.00607797,2061.6,2060.7,2.52892386]
[1773141681172,0.00607797,2061.6,2060.9,2.52892386]
[1773141681375,2.39353054,2061.6,2060.9,2.52892386]
[1773141681970,2.39353054,2061.6,2060.9,60.53035604]
[1773141682172,2.39353054,2061.6,2060.7,2.52892386]
[1773141682573,2.39353054,2061.6,2060.5,2.53469871]
[1773141682774,2.39353054,2061.6,2060.6,58.00143218]
[1773141684276,2.38745257,2061.4,2060.6,58.00143218]
[1773141686779,2.38745257,2061.2,2060.6,58.00143218]
[1773141686980,2.38745257,2061.2,2060.5,2.53469871]
[1773141687179,2.38745257,2061.2,2060.6,58.00143218]
[1773141690590,2.38745257,2061.2,2060.5,0.00577485]
[1773141690781,2.38745257,2061.2,2060.5,58.00720703]
[1773141690984,5.96629,2061.5,2060.2,2.52892386]
[1773141690985,2.38745257,2061.0,2060.2,2.52892386]
[1773141691188,2.38745257,2061.0,2060.3,58.00143218]
[1773141691788,2.38745257,2060.8,2060.3,60.53035604]
[1773141691989,8.74545257,2060.7,2060.3,60.53649615]
[1773141692489,2.38745257,2060.6,2060.3,60.53649615]
[1773141692689,2.38745257,2060.6,2060.3,58.00757229]
[1773141692988,2.38745257,2060.6,2059.2,0.24278]
[1773141692989,2.38745257,2060.6,2059.9,2.52892386]
[1773141693794,2.38745257,2060.6,2059.9,2.53353817]
[1773141694992,17.87274378,2060.5,2060.1,11.3469687]
[1773141695196,11.51474378,2061.0,2060.1,11.3469687]
[1773141695485,6.358,2060.9,2060.2,66.430861]
[1773141695691,11.51474378,2060.8,2060.2,11.3469687]
[1773141696291,11.51474378,2060.8,2060.0,66.430861]
[1773141696491,11.51474378,2060.8,2060.1,11.3469687]
[1773141697386,11.51474378,2060.6,2060.3,11.3469687]
[1773141697586,11.51474378,2061.0,2060.2,11.3469687]
[1773141697794,6.358,2060.9,2060.4,11.3469687]
[1773141698493,6.358,2060.8,2060.6,11.3469687]
[1773141698690,6.358,2060.7,2060.6,11.3469687]
[1773141698891,11.51474378,2061.2,2060.8,11.3469687]
[1773141699090,0.24859797,2061.6,2060.8,11.3469687]
[1773141699091,11.51474378,2061.5,2060.8,11.3469687]
[1773141699290,6.358,2061.4,2061.0,11.3469687]
[1773141699792,11.51474378,2061.5,2061.0,11.3469687]
[1773141699991,6.358,2061.4,2061.1,66.430861]
[1773141700190,6.358,2061.4,2061.1,11.3469687]
[1773141700990,11.52082175,2061.6,2061.2,66.430861]
[1773141701195,6.358,2061.5,2061.3,11.3469687]
[1773141701497,6.357,2061.4,2061.3,11.3469687]
[1773141701688,5.78300001,2061.4,2061.3,66.430861]
[1773141702088,11.51474378,2061.3,2060.9,11.3469687]
[1773141702298,11.51474378,2061.3,2060.6,49.26952675]
[1773141704292,11.51474378,2061.1,2060.6,49.26952675]
[1773141704491,11.51474378,2060.9,2060.0,11.3469687]
[1773141704694,11.51474378,2060.9,2060.3,11.3469687]
[1773141708403,18.49883533,2060.8,2060.3,11.3469687]
[1773141708605,6.357,2060.7,2060.5,11.57440755]
[1773141709404,12.14183533,2060.8,2060.5,11.57440755]
[1773141709603,6.357,2060.7,2060.6,40.0838923]
[1773141710509,12.14183533,2061.4,2060.7,11.57440755]
[1773141710802,12.14183533,2061.2,2060.8,11.57440755]
[1773141711001,6.357,2061.1,2060.8,51.65829985]
[1773141711204,6.357,2061.0,2060.9,20.760042]
[1773141711404,6.357,2061.0,2060.9,8.61163446]
[1773141712301,6.357,2061.0,2060.9,8.2815753]
[1773141716407,6.357,2061.0,2060.9,48.3654676]
[1773141719112,11.56783534,2061.1,2060.9,48.3654676]
[1773141719412,6.356,2061.0,2060.9,48.3654676]
[1773141720910,11.56783534,2061.1,2060.9,48.3654676]
[1773141721209,6.356,2061.0,2060.9,48.3654676]
[1773141722714,12.14183533,2060.9,2060.6,11.57440755]
[1773141723116,6.356,2060.8,2060.6,11.57440755]
[1773141723310,6.356,2060.8,2060.6,9.38216744]
[1773141723707,17.85346411,2060.8,2060.4,11.44186942]
[1773141724006,11.49746411,2060.7,2060.5,7.05040727]
[1773141724210,6.356,2060.6,2060.2,11.44186942]
[1773141724414,11.49746411,2061.2,2060.4,11.44186942]
[1773141724618,19.98646411,2061.4,2060.4,11.44186942]
[1773141724814,17.85346411,2061.3,2060.6,11.44186942]
[1773141725214,17.85346411,2061.2,2060.6,11.44186942]
[1773141725419,11.49746411,2061.2,2060.8,11.44186942]
[1773141725616,6.356,2061.1,2060.8,11.44186942]
[1773141726419,11.49746411,2061.2,2060.8,11.44186942]
[1773141726621,6.356,2061.0,2060.9,57.43926088]
[1773141726816,6.356,2061.0,2060.9,11.44186942]
[1773141728419,6.356,2061.0,2060.9,10.86103711]
[1773141728620,6.356,2061.0,2060.9,45.99739146]
[1773141728823,4.44848621,2061.0,2060.9,45.99739146]
[1773141729322,11.49746411,2060.9,2060.6,11.44186942]
[1773141729815,6.356,2060.8,2060.6,11.44186942]
[1773141730715,6.356,2060.8,2060.7,36.78812278]
[1773141730914,6.356,2060.8,2060.4,12.20220928]
[1773141731521,6.356,2060.7,2060.4,12.20220928]
[1773141731720,6.356,2060.6,2060.5,31.55059755]
[1773141732022,6.356,2060.6,2060.5,12.62082333]
[1773141735023,5.01206368,2061.2,2060.6,11.44186942]
[1773141735325,6.357,2061.1,2060.8,11.44186942]
[1773141736225,5.24760733,2061.4,2061.0,11.44186942]
[1773141736424,6.357,2061.3,2061.0,11.44186942]
[1773141736725,6.357,2061.3,2061.1,11.44186942]
[1773141736922,4.44948621,2061.3,2061.1,11.44186942]
[1773141737526,4.44948621,2061.3,2061.0,18.92977422]
[1773141737527,5.22687799,2061.4,2061.0,30.37164364]
[1773141737725,6.357,2061.3,2061.0,30.37164364]
[1773141738225,6.357,2061.3,2061.1,11.44186942]
[1773141738527,5.22687799,2061.4,2061.1,11.44186942]
[1773141738819,6.357,2061.3,2061.1,18.92977422]
[1773141739025,12.23094958,2061.3,2061.1,18.92977422]
[1773141739620,12.23094958,2061.3,2061.1,12.44227507]
[1773141742128,12.23094958,2061.3,2061.0,11.44186942]
[1773141742330,12.23094958,2061.3,2061.1,18.92977422]
[1773141743623,8.73758797,2061.6,2061.1,18.92977422]
[1773141743828,5.58641634,2061.4,2061.1,18.92977422]
[1773141744028,5.58641634,2061.4,2061.1,30.37164364]
[1773141744928,5.52702754,2061.5,2061.1,30.37164364]
[1773141745129,6.412,2061.3,2061.1,30.37164364]
[1773141745933,6.431,2061.2,2061.1,30.37164364]